fUSD/lending_fUSD_20250120
["ID","MTS","AMOUNT","RATE_DAILY","PERIOD"]
[349731747,1737397866621,-403.77,0.00021714,2]
[349731748,1737397866631,-500.0,0.00021714,2]
[349731749,1737397866641,-585.55,0.00021714,2]
[349731750,1737397866651,-2198.8,0.00021714,2]
[349731751,1737397866661,-943.09,0.00021714,2]
[349731752,1737397866671,-500.0,0.00021714,2]
[349731753,1737397866681,-500.0,0.00021714,2]
[349731754,1737397866691,-1543.53,0.00021714,2]
[349731755,1737397866702,-1697.74,0.00021714,2]
[349731756,1737397866712,-500.0,0.00021714,2]
[349731757,1737397866723,-500.0,0.00021714,2]
[349731758,1737397866733,-1295.84,0.00021714,2]
[349731759,1737397866744,-500.0,0.00021714,2]
[349731760,1737397866755,-2441.29,0.00021714,2]
[349731761,1737397866767,-500.0,0.00021714,2]
[349731762,1737397866776,-517.74,0.00021714,2]
[349731763,1737397866792,-500.0,0.00021714,2]
[349731764,1737397866803,-775.72,0.00021714,2]
[349731765,1737397866822,-500.0,0.00021714,2]
[349731766,1737397866833,-500.0,0.00021714,2]
[349731767,1737397866845,-500.0,0.00021714,2]
[349731768,1737397866855,-1238.08,0.00021714,2]
[349731769,1737397866866,-1368.57,0.00021714,2]
[349731770,1737397866876,-500.0,0.00021714,2]
[349731771,1737397866887,-500.0,0.00021714,2]
[349731772,1737397866898,-592.15,0.00021714,2]
[349731773,1737397866908,-300.30284866,0.00021714,2]
[349731774,1737397867202,-199.69715134,0.00021714,2]
[349731775,1737397867212,-1000.0,0.00021714,2]
[349731776,1737397867222,-527.53,0.00021714,2]
[349731777,1737397867232,-801.34,0.00021714,2]
[349731778,1737397867242,-988.73,0.00021714,2]
[349731779,1737397867251,-500.0,0.00021714,2]
[349731780,1737397867260,-500.0,0.00021714,2]
[349731781,1737397867270,-500.0,0.00021714,2]
[349731782,1737397867280,-899.98,0.00021714,2]
[349731783,1737397867292,-500.0,0.00021714,2]
[349731784,1737397867301,-464.73,0.00021714,2]
[349731785,1737397867311,-500.0,0.00021714,2]
[349731786,1737397867321,-1398.85,0.00021714,2]
[349731787,1737397867333,-500.0,0.00021714,2]
[349731788,1737397867343,-966.69,0.00021714,2]
[349731789,1737397867355,-1419.75,0.00021714,2]
[349731790,1737397867368,-500.0,0.00021714,2]
[349731791,1737397867378,-500.0,0.00021714,2]
[349731792,1737397867387,-299.86735785,0.00021726,2]
[349731793,1737397867397,-599.7347157,0.00021727,2]
[349731794,1737397867409,-299.86735785,0.00021727,2]
[349731795,1737397867419,-9105.20964417,0.00021728,2]
[349731796,1737397867428,-3082.70176263,0.00021728,2]
[349731797,1737397867438,-1429.83245865,0.00021728,2]
[349731798,1737397867447,-8661.05108883,0.00021728,2]
[349731799,1737397867456,-726.46660121,0.00021729,2]
[349731800,1737397867467,-5384.05799188,0.0002173,2]
[349731801,1737397867476,-2321.84160637,0.0002173,2]
[349731802,1737397867488,-6243.500001,0.0002173,2]
[349731803,1737397867523,-1599.49,0.00020791,2]
[349731804,1737397867532,-1133.93613852,0.0002173,2]
[349731805,1737397867712,-500.0,0.0002007,2]
[349731806,1737397867722,-500.0,0.00020344,2]
[349731807,1737397867731,-500.0,0.00020344,2]
[349731808,1737397867740,-500.0,0.00020618,2]
[349731809,1737397867751,-500.0,0.00020892,2]
[349731810,1737397867760,-179.80192,0.00021065,2]
[349731811,1737397867771,-1067.06472,0.00021065,2]
[349731812,1737397867790,-317.45,0.00021065,2]
[349731813,1737397868217,-35.17336,0.00021065,2]
[349731814,1737397868227,-500.0,0.00021166,2]
[349731815,1737397868236,-1599.49,0.00021339,2]
[349731816,1737397868246,-500.0,0.0002144,2]
[349731817,1737397868255,-1599.49,0.00021613,2]
[349731818,1737397868264,-8511.14154244,0.0002173,2]
[349731819,1737397868274,-9105.20964417,0.00021732,2]
[349731820,1737397868283,-1452.93320241,0.00021732,2]
[349731821,1737397868296,-3082.70176263,0.00021733,2]
[349731822,1737397868305,-1452.9332024,0.00021733,2]
[349731823,1737397868317,-35038.98379277,0.00021734,2]
[349731824,1737397868334,-3788.56491367,0.00021734,2]
[349731825,1737397868343,-200.0,0.00021735,2]
[349731826,1737397868354,-5908.14098076,0.00021735,2]
[349731827,1737397868551,-500.0,0.00019968,2]
[349731828,1737397868561,-252.49252953,0.00020067,2]
[349731829,1737397868572,-500.0,0.0002007,2]
[349731830,1737397868581,-500.0,0.0002007,2]
[349731831,1737397868592,-150.0,0.00020445,2]
[349731832,1737397868602,-150.0,0.00021054,2]
[349731833,1737397868611,-150.0,0.00021629,2]
[349731834,1737397868620,-235.78469352,0.00021714,2]
[349731835,1737397868634,-264.21530648,0.00021714,2]
[349731836,1737397868643,-2021.39583987,0.00021735,2]
[349731837,1737397868662,-627.513,0.00021735,2]
[349731838,1737397868674,-104.0012682,0.00021735,2]
[349731839,1737397868684,-4330.52554442,0.00021736,2]
[349731840,1737397868693,-150.0,0.00021737,2]
[349731841,1737397868703,-299.86735785,0.0002174,2]
[349731842,1737397868712,-115.60486952,0.00021742,2]
[349731843,1737397868724,-3225.31122059,0.00021742,2]
[349731844,1737397868733,-1452.93320241,0.00021744,2]
[349731845,1737397868742,-333.0897121,0.00021744,2]
[349731846,1737397868754,-711.86272091,0.00021744,2]
[349731847,1737397868765,-407.98076939,0.00021744,2]
[349731848,1737397868774,-976.05609581,0.00021746,2]
[349731849,1737397868787,-299.86735785,0.00021747,2]
[349731850,1737397868797,-9105.20964416,0.00021748,2]
[349731851,1737397868806,-976.05609581,0.00021749,2]
[349731852,1737397868815,-1429.83245865,0.0002175,2]
[349731853,1737397868824,-178.93857408,0.0002175,2]
[349731854,1737397868833,-1452.93320241,0.0002175,2]
[349731855,1737397868843,-9105.20964417,0.00021752,2]
[349731856,1737397868852,-726.46660121,0.00021753,2]
[349731857,1737397868861,-4330.52554442,0.00021754,2]
[349731858,1737397868871,-7580.53692257,0.00021756,2]
[349731859,1737397868880,-1952.11219162,0.00021756,2]
[349731860,1737397868889,-1429.83245865,0.00021756,2]
[349731861,1737397868898,-200.0,0.00021757,2]
[349731862,1737397868908,-9105.20964417,0.00021758,2]
[349731863,1737397868918,-299.86735785,0.00021758,2]
[349731864,1737397868928,-18210.41928833,0.00021758,2]
[349731865,1737397868937,-599.7347157,0.00021758,2]
[349731866,1737397868947,-1452.93320241,0.0002176,2]
[349731867,1737397868956,-13268.27823074,0.00021761,2]
[349731868,1737397868968,-1802.50005,0.00021761,2]
[349731869,1737397868991,-3139.64100759,0.00021761,2]
[349731870,1737397869002,-200.0,0.00021761,2]
[349731871,1737397869011,-3082.70176263,0.00021766,2]
[349731872,1737397869020,-299.86735785,0.00021767,2]
[349731873,1737397869030,-200.0,0.00021767,2]
[349731874,1737397869040,-972.44999074,0.00021769,2]
[349731875,1737397869050,-1429.83245865,0.00021771,2]
[349731876,1737397869060,-5384.05799188,0.00021774,2]
[349731877,1737397869069,-7474.77715543,0.00021774,2]
[349731878,1737397869080,-1630.43248874,0.00021774,2]
[349731879,1737397869089,-976.05609581,0.00021775,2]
[349731880,1737397869098,-9105.20964416,0.00021776,2]
[349731881,1737397869107,-972.44999074,0.00021778,2]
[349731882,1737397869116,-2971.46924773,0.0002178,2]
[349731883,1737397869128,-5689.5818411,0.0002178,2]
[349731884,1737397869138,-200.0,0.00021781,2]
[349731885,1737397869148,-464.0,0.00021781,2]
[349731886,1737397869158,-150.0,0.00021781,4]
[349731887,1737397869168,-150.0,0.00021781,4]
[349731888,1737397869179,-1429.83245865,0.00021781,2]
[349731889,1737397869188,-9105.20964416,0.00021782,2]
[349731890,1737397869197,-9105.20964417,0.00021783,2]
[349731891,1737397869207,-150.0,0.00021786,2]
[349731892,1737397869217,-209.4912608,0.00021789,3]
[349731893,1737397869227,-299.86735785,0.0002179,2]
[349731894,1737397869237,-972.44999074,0.00021791,2]
[349731895,1737397869247,-8661.05108883,0.00021792,2]
[349731896,1737397869256,-299.86735785,0.00021793,2]
[349731897,1737397869266,-299.86735785,0.00021793,2]
[349731898,1737397869275,-299.86735785,0.00021793,2]
[349731899,1737397869284,-299.86735785,0.00021795,2]
[349731900,1737397869299,-14524.07905793,0.00021796,2]
[349731901,1737397869311,-814.80320064,0.00021796,2]
[349731902,1737397869323,-330.89,0.00021796,2]
[349731903,1737397869610,-475.85905675,0.00019968,2]
[349731904,1737397869620,-500.0,0.00019969,2]
[349731905,1737397869630,-571.27,0.0002007,2]
[349731906,1737397869641,-500.0,0.0002007,2]
[349731907,1737397869651,-280.82,0.00020243,2]
[349731908,1737397869662,-23157.77644787,0.00021796,2]
[349731909,1737397869672,-200.0,0.00021797,2]
[349731910,1737397869681,-8661.05108883,0.000218,2]
[349731911,1737397869691,-701.0,0.000218,7]
[349731912,1737397869701,-299.86735785,0.00021802,2]
[349731913,1737397869710,-171.261219,0.00021802,2]
[349731914,1737397869719,-8661.05108883,0.00021806,2]
[349731915,1737397869728,-599.7347157,0.00021809,2]
[349731916,1737397869738,-1452.9332024,0.0002181,2]
[349731917,1737397869747,-500.0,0.00021812,2]
[349731918,1737397869757,-500.0,0.00021812,2]
[349731919,1737397869767,-500.0,0.00021812,2]
[349731920,1737397869777,-500.0,0.00021812,2]
[349731921,1737397869789,-500.0,0.00021812,2]
[349731922,1737397869799,-500.0,0.00021812,2]
[349731923,1737397869808,-500.0,0.00021812,2]
[349731924,1737397869818,-500.0,0.00021812,2]
[349731925,1737397869828,-500.0,0.00021812,2]
[349731926,1737397869838,-500.0,0.00021812,2]
[349731927,1737397869847,-500.0,0.00021812,2]
[349731928,1737397869856,-500.0,0.00021812,2]
[349731929,1737397869866,-500.0,0.00021812,2]
[349731930,1737397869878,-500.0,0.00021812,2]
[349731931,1737397869888,-500.0,0.00021812,2]
[349731932,1737397869898,-500.0,0.00021812,2]
[349731933,1737397869907,-500.0,0.00021812,2]
[349731934,1737397869917,-500.0,0.00021812,2]
[349731935,1737397869927,-500.0,0.00021812,2]
[349731936,1737397869936,-500.0,0.00021812,2]
[349731937,1737397869946,-500.0,0.00021812,2]
[349731938,1737397869956,-500.0,0.00021812,2]
[349731939,1737397869966,-500.0,0.00021812,2]
[349731940,1737397869976,-500.0,0.00021812,2]
[349731941,1737397869986,-500.0,0.00021812,2]
[349731942,1737397869995,-500.0,0.00021812,2]
[349731943,1737397870005,-500.0,0.00021812,2]
[349731944,1737397870015,-500.0,0.00021812,2]
[349731945,1737397870025,-500.0,0.00021812,2]
[349731946,1737397870035,-500.0,0.00021812,2]
[349731947,1737397870048,-500.0,0.00021812,2]
[349731948,1737397870058,-500.0,0.00021812,2]
[349731949,1737397870067,-500.0,0.00021812,2]
[349731950,1737397870077,-500.0,0.00021812,2]
[349731951,1737397870087,-500.0,0.00021812,2]
[349731952,1737397870096,-500.0,0.00021812,2]
[349731953,1737397870106,-500.0,0.00021812,2]
[349731954,1737397870116,-500.0,0.00021812,2]
[349731955,1737397870125,-500.0,0.00021812,2]
[349731956,1737397870264,-735.82,0.00021812,2]
[349731957,1737397870274,-500.0,0.00021812,2]
[349731958,1737397870284,-513.05,0.00021812,2]
[349731959,1737397870296,-151.0,0.00021812,2]
[349731960,1737397870306,-500.0,0.00021812,2]
[349731961,1737397870316,-500.0,0.00021812,2]
[349731962,1737397870326,-500.0,0.00021812,2]
[349731963,1737397870339,-531.58,0.00021812,2]
[349731964,1737397870349,-500.0,0.00021812,2]
[349731965,1737397870360,-500.0,0.00021812,2]
[349731966,1737397870373,-151.0,0.00021812,2]
[349731967,1737397870382,-500.0,0.00021812,2]
[349731968,1737397870394,-500.0,0.00021812,2]
[349731969,1737397870404,-151.0,0.00021812,2]
[349731970,1737397870416,-9105.20964416,0.00021812,2]
[349731971,1737397870426,-500.0,0.00021813,2]
[349731972,1737397870436,-375.96158981,0.00021813,2]
[349731973,1737397870445,-468.15169156,0.00021813,2]
[349731974,1737397870454,-500.0,0.00021813,2]
[349731975,1737397870464,-500.0,0.00021813,2]
[349731976,1737397870473,-976.05609581,0.00021814,2]
[349731977,1737397870483,-976.05609581,0.00021815,2]
[349731978,1737397870492,-599.7347157,0.00021818,2]
[349731979,1737397870503,-5384.05799188,0.00021819,2]
[349731980,1737397870513,-200.0,0.00021819,2]
[349731981,1737397870522,-18210.41928833,0.00021821,2]
[349731982,1737397870532,-976.05609581,0.00021821,2]
[349731983,1737397870543,-4330.52554442,0.00021822,2]
[349731984,1737397870552,-599.7347157,0.00021823,2]
[349731985,1737397870562,-500.0,0.00021824,2]
[349731986,1737397870572,-299.86735785,0.00021826,2]
[349731987,1737397870582,-726.46660121,0.00021826,2]
[349731988,1737397870591,-200.0,0.00021827,2]
[349731989,1737397870601,-3340.91609011,0.00021828,2]
[349731990,1737397870610,-9105.20964417,0.00021828,2]
[349731991,1737397870620,-976.05609581,0.00021829,2]
[349731992,1737397870629,-200.0,0.0002183,2]
[349731993,1737397870639,-1952.11219162,0.00021832,2]
[349731994,1737397870649,-38827.54870644,0.00021832,2]
[349731995,1737397870658,-976.05609581,0.00021833,2]
[349731996,1737397870668,-8661.05108883,0.00021834,2]
[349731997,1737397870677,-3340.91609011,0.00021837,2]
[349731998,1737397870687,-3340.91609011,0.00021838,2]
[349731999,1737397870696,-976.05609581,0.0002184,2]
[349732000,1737397870706,-1952.11219162,0.00021841,2]
[349732001,1737397870715,-976.05609581,0.00021841,2]
[349732002,1737397870724,-38827.54870644,0.00021842,2]
[349732003,1737397870733,-976.05609581,0.00021845,2]
[349732004,1737397870742,-8661.05108883,0.00021846,2]
[349732005,1737397870751,-150.0,0.00021848,2]
[349732006,1737397870761,-976.05609581,0.00021851,2]
[349732007,1737397870770,-9105.20964417,0.00021852,2]
[349732008,1737397870780,-972.44999074,0.00021852,2]
[349732009,1737397870791,-299.86735785,0.00021853,2]
[349732010,1737397870801,-9105.20964416,0.00021858,2]
[349732011,1737397870810,-976.05609581,0.0002186,2]
[349732012,1737397870819,-1452.9332024,0.00021861,2]
[349732013,1737397870828,-5384.05799188,0.00021862,2]
[349732014,1737397870838,-8661.05108883,0.00021864,2]
[349732015,1737397870847,-3082.70176263,0.00021864,2]
[349732016,1737397870857,-18210.41928833,0.00021866,2]
[349732017,1737397870867,-350.0,0.00021868,2]
[349732018,1737397870877,-150.0,0.0002187,2]
[349732019,1737397870887,-38827.54870644,0.00021871,2]
[349732020,1737397870896,-726.46660121,0.00021874,2]
[349732021,1737397870905,-1579.73998649,0.00021874,3]
[349732022,1737397870915,-5800.0,0.00021875,2]
[349732023,1737397870924,-3340.91609011,0.00021875,2]
[349732024,1737397870934,-9105.20964417,0.00021879,2]
[349732025,1737397870943,-1452.93320241,0.00021882,2]
[349732026,1737397870953,-5800.0,0.00021883,2]
[349732027,1737397870963,-4330.52554442,0.00021884,2]
[349732028,1737397870972,-299.86735785,0.00021884,2]
[349732029,1737397870982,-1452.9332024,0.00021884,2]
[349732030,1737397870991,-500.0,0.00021886,2]
[349732031,1737397871000,-500.0,0.00021886,2]
[349732032,1737397871009,-976.05609581,0.00021886,2]
[349732033,1737397871019,-200.0,0.00021887,2]
[349732034,1737397871029,-616.66934,0.00021887,2]
[349732035,1737397871041,-500.0,0.00021887,2]
[349732036,1737397871051,-758.96,0.00021887,2]
[349732037,1737397871060,-596.669327,0.00021887,2]
[349732038,1737397871070,-500.0,0.00021887,2]
[349732039,1737397871080,-1743.11,0.00021887,2]
[349732040,1737397871090,-1379.8,0.00021887,2]
[349732041,1737397871100,-500.0,0.00021887,2]
[349732042,1737397871110,-500.0,0.00021887,2]
[349732043,1737397871120,-500.0,0.00021887,2]
[349732044,1737397871129,-3211.89,0.00021887,2]
[349732045,1737397871139,-500.0,0.00021887,2]
[349732046,1737397871149,-719.26,0.00021887,2]
[349732047,1737397871159,-1284.65,0.00021887,2]
[349732048,1737397871168,-923.32,0.00021887,2]
[349732049,1737397871178,-1202.05,0.00021887,2]
[349732050,1737397871187,-542.65,0.00021887,2]
[349732051,1737397871197,-500.0,0.00021887,2]
[349732052,1737397871207,-510.93,0.00021887,2]
[349732053,1737397871216,-500.0,0.00021887,2]
[349732054,1737397871226,-2369.21,0.00021887,2]
[349732055,1737397871235,-500.0,0.00021887,2]
[349732056,1737397871245,-1325.13,0.00021887,2]
[349732057,1737397871255,-1421.64,0.00021887,2]
[349732058,1737397871264,-3407.58,0.00021887,2]
[349732059,1737397871274,-1792.88,0.00021887,2]
[349732060,1737397871284,-1026.23,0.00021887,2]
[349732061,1737397871299,-656.47,0.00021887,2]
[349732062,1737397871308,-1175.98,0.00021887,2]
[349732063,1737397871318,-1093.21,0.00021887,2]
[349732064,1737397871327,-500.0,0.00021887,2]
[349732065,1737397871341,-2073.11,0.00021887,2]
[349732066,1737397871351,-2287.33,0.00021887,2]
[349732067,1737397871361,-500.0,0.00021887,2]
[349732068,1737397871372,-2360.21,0.00021887,2]
[349732069,1737397871382,-1517.47,0.00021887,2]
[349732070,1737397871393,-500.0,0.00021887,2]
[349732071,1737397871402,-728.35,0.00021887,2]
[349732072,1737397871413,-777.0,0.00021887,2]
[349732073,1737397871423,-525.86,0.00021887,2]
[349732074,1737397871432,-1352.97,0.00021887,2]
[349732075,1737397871442,-500.0,0.00021887,2]
[349732076,1737397871451,-2621.73,0.00021887,2]
[349732077,1737397871462,-2214.8,0.00021887,2]
[349732078,1737397871472,-500.0,0.00021887,2]
[349732079,1737397871482,-500.0,0.00021887,2]
[349732080,1737397871492,-1050.29,0.00021887,2]
[349732081,1737397871503,-921.05,0.00021887,2]
[349732082,1737397871512,-500.0,0.00021887,2]
[349732083,1737397871522,-500.0,0.00021887,2]
[349732084,1737397871532,-2832.84,0.00021887,2]
[349732085,1737397871546,-500.0,0.00021887,2]
[349732086,1737397871555,-1599.49,0.00021887,2]
[349732087,1737397871566,-1952.11219162,0.00021888,2]
[349732088,1737397871577,-2001.0447,0.0002189,2]
[349732089,1737397871587,-2000.0,0.0002189,2]
[349732090,1737397871597,-1000.0,0.0002189,2]
[349732091,1737397871608,-1000.0,0.0002189,2]
[349732092,1737397871618,-1000.0,0.0002189,2]
[349732093,1737397871628,-1000.0,0.0002189,2]
[349732094,1737397871637,-1000.0,0.0002189,2]
[349732095,1737397871647,-1000.0,0.0002189,2]
[349732096,1737397871657,-1000.0,0.0002189,2]
[349732097,1737397871666,-1000.0,0.0002189,2]
[349732098,1737397871675,-1000.0,0.0002189,2]
[349732099,1737397871685,-1000.0,0.0002189,2]
[349732100,1737397871695,-1000.0,0.0002189,2]
[349732101,1737397871704,-340.8668,0.0002189,2]
[349732102,1737397871714,-151.0,0.0002189,2]
[349732103,1737397871723,-151.0,0.0002189,2]
[349732104,1737397871733,-152.137057,0.0002189,2]
[349732105,1737397871742,-151.0,0.0002189,2]
[349732106,1737397871752,-151.0,0.0002189,2]
[349732107,1737397871761,-430.977732,0.0002189,2]
[349732108,1737397871771,-151.0,0.0002189,2]
[349732109,1737397871781,-1373.791854,0.0002189,2]
[349732110,1737397871792,-430.977732,0.0002189,2]
[349732111,1737397871801,-151.0,0.0002189,2]
[349732112,1737397871811,-1373.791854,0.0002189,2]
[349732113,1737397871820,-650.34695,0.0002189,2]
[349732114,1737397871829,-650.34695,0.0002189,2]
[349732115,1737397871839,-500.0,0.0002189,2]
[349732116,1737397871848,-150.0,0.0002189,4]
[349732117,1737397871858,-3082.70176263,0.00021891,2]
[349732118,1737397871867,-5800.0,0.00021892,2]
[349732119,1737397871878,-257.8,0.00021892,2]
[349732120,1737397871888,-972.44999074,0.00021894,2]
[349732121,1737397871897,-152.0,0.00021895,4]
[349732122,1737397871907,-158.7120884,0.00021895,2]
[349732123,1737397871916,-1952.11219162,0.00021895,2]
[349732124,1737397871926,-726.46660121,0.00021896,2]
[349732125,1737397871936,-976.05609581,0.00021896,2]
[349732126,1737397871945,-4330.52554442,0.00021897,2]
[349732127,1737397871954,-43785.36975318,0.00021897,2]
[349732128,1737397871969,-1531.11558994,0.00021897,2]
[349732129,1737397871978,-70.28374526,0.00021898,2]
[349732130,1737397872095,-8590.76734357,0.00021898,2]
[349732131,1737397872105,-5972.46174478,0.00021899,2]
[349732132,1737397872116,-796.94992358,0.00021899,2]
[349732133,1737397872128,-5356.53481693,0.00021899,2]
[349732134,1737397872572,-2704.598,0.00021899,2]
[349732135,1737397872585,-2592.65,0.00021899,2]
[349732136,1737397872597,-628.239994,0.00021899,2]
[349732137,1737397872610,-1346.60363188,0.00021899,2]
[349732138,1737397872622,-419.40138,0.00021899,2]
[349732139,1737398298372,17499.37753451,0.00024,120]
[349732140,1737398489988,-1516.81,0.00017071,2]
[349732141,1737398490010,-866.85468385,0.00018064,2]
[349732142,1737398490032,-500.0,0.00018164,2]
[349732143,1737398490055,-500.0,0.00018164,2]
[349732144,1737398490077,-5926.3276,0.0001858,2]
[349732145,1737398490100,-593.8129683,0.00018813,2]
[349732146,1737398490127,-257.8,0.00018995,2]
[349732147,1737398490149,-1373.11,0.00019034,2]
[349732148,1737398490169,-173.9,0.00019052,2]
[349732149,1737398490191,-250.0,0.0001911,2]
[349732150,1737398490213,-500.0,0.0001926,2]
[349732151,1737398490237,-841.38474785,0.00019307,2]
[349732154,1737398593861,-500.0,0.00018164,2]
[349732155,1737398593882,-500.0,0.00018164,2]
[349732156,1737398593906,-500.0,0.0001926,2]
[349732157,1737398593929,-90.49525215,0.00019307,2]
[349732158,1737398593951,-1516.81,0.00019335,2]
[349732159,1737398593972,-639.64816685,0.00019721,2]
[349732160,1737398593994,-1478.2,0.00019747,30]
[349732161,1737398594015,-1000.0,0.0001977,2]
[349732162,1737398594036,-683.3228189,0.00019868,2]
[349732163,1737398594056,-500.0,0.00019869,2]
[349732164,1737398594078,-6275.603,0.0001987,2]
[349732165,1737398594101,-200.03817783,0.000199,2]
[349732166,1737398594123,-175.62,0.00019923,2]
[349732167,1737398594144,-2393.87,0.0001993,2]
[349732168,1737398594166,-5696.39,0.0001993,2]
[349732169,1737398594187,-158.21127351,0.0001993,2]
[349732170,1737398594208,-500.0,0.00019968,2]
[349732171,1737398594230,-433.49178807,0.00019968,2]
[349732172,1737398594250,-500.0,0.00019968,2]
[349732173,1737398594270,-500.0,0.00019968,2]
[349732174,1737398594291,-500.0,0.00019968,2]
[349732175,1737398594312,-258.29952269,0.00019968,2]
[349732179,1737398640453,-990.59,0.00019503,2]
[349732180,1737398640476,-241.70047731,0.00019968,2]
[349732181,1737398640499,-500.0,0.00019968,2]
[349732182,1737398640521,-500.0,0.00019968,2]
[349732183,1737398640546,-500.0,0.00019968,2]
[349732184,1737398640575,-500.0,0.00019968,2]
[349732185,1737398640598,-500.0,0.00019968,2]
[349732186,1737398640629,-500.0,0.00019968,2]
[349732187,1737398640653,-500.0,0.00019968,2]
[349732188,1737398640679,-500.0,0.00019968,2]
[349732189,1737398640701,-501.07829918,0.00019968,2]
[349732190,1737398640725,-502.82382922,0.00019968,2]
[349732191,1737398640748,-500.0,0.00019968,2]
[349732192,1737398640771,-500.0,0.00019968,2]
[349732193,1737398640793,-500.0,0.00019968,2]
[349732194,1737398640816,-500.0,0.00019968,2]
[349732195,1737398640841,-500.0,0.00019968,2]
[349732196,1737398640862,-500.0,0.00019968,2]
[349732197,1737398640886,-500.0,0.00019968,2]
[349732198,1737398640910,-500.0,0.00019968,2]
[349732199,1737398640936,-500.0,0.00019968,2]
[349732200,1737398640958,-500.0,0.00019968,2]
[349732201,1737398640981,-500.0,0.00019968,2]
[349732202,1737398641003,-500.0,0.00019968,2]
[349732203,1737398641025,-387.79842223,0.00019968,2]
[349732204,1737398641047,-500.0,0.00019968,2]
[349732205,1737398641070,-500.0,0.00019968,2]
[349732206,1737398641094,-500.0,0.00019968,2]
[349732207,1737398641116,-500.0,0.00019968,2]
[349732208,1737398641326,-500.0,0.00019968,2]
[349732209,1737398641349,-507.50042336,0.00019968,2]
[349732210,1737398641371,-500.0,0.00019968,2]
[349732211,1737398641401,-500.0,0.00019968,2]
[349732212,1737398641424,-500.0,0.00019968,2]
[349732213,1737398641449,-500.0,0.00019968,2]
[349732214,1737398641471,-500.0,0.00019968,2]
[349732215,1737398641497,-500.0,0.00019968,2]
[349732216,1737398641522,-500.0,0.00019968,2]
[349732217,1737398641549,-500.0,0.00019968,2]
[349732218,1737398641573,-500.0,0.00019968,2]
[349732219,1737398641598,-500.0,0.00019968,2]
[349732220,1737398641623,-500.0,0.00019968,2]
[349732221,1737398641646,-500.0,0.00019968,2]
[349732222,1737398641669,-568.51191335,0.00019968,2]
[349732223,1737398641693,-244.99663535,0.00019968,2]
[349732229,1737398711855,-500.0,0.00018164,2]
[349732230,1737398711878,-154.36,0.00019468,2]
[349732231,1737398711900,-23900.0,0.00019666,2]
[349732232,1737398711923,-150.0,0.00019945,2]
[349732233,1737398711945,-255.00336465,0.00019968,2]
[349732234,1737398711966,-500.0,0.00019968,2]
[349732235,1737398711989,-500.0,0.00019968,2]
[349732236,1737398712011,-500.0,0.00019968,2]
[349732237,1737398712033,-500.0,0.00019968,2]
[349732238,1737398712057,-500.0,0.00019968,2]
[349732239,1737398712078,-500.0,0.00019968,2]
[349732240,1737398712102,-500.0,0.00019968,2]
[349732241,1737398712124,-500.0,0.00019968,2]
[349732242,1737398712148,-500.0,0.00019968,2]
[349732243,1737398712172,-500.0,0.00019968,2]
[349732244,1737398712195,-504.73,0.00019968,2]
[349732245,1737398712217,-500.0,0.00019968,2]
[349732246,1737398712241,-500.0,0.00019968,2]
[349732247,1737398712263,-509.35166967,0.00019968,2]
[349732248,1737398712286,-500.0,0.00019968,2]
[349732249,1737398712307,-500.0,0.00019968,2]
[349732250,1737398712329,-500.0,0.00019968,2]
[349732251,1737398712350,-500.0,0.00019968,2]
[349732252,1737398712372,-500.0,0.00019968,2]
[349732253,1737398712394,-500.0,0.00019968,2]
[349732254,1737398712416,-500.0,0.00019968,2]
[349732255,1737398712437,-500.0,0.00019968,2]
[349732256,1737398712460,-500.0,0.00019968,2]